bitfinex-derivatives/quotes_ETHF0:USTF0_20251211
["timestamp","ask_amount","ask_price","bid_price","bid_amount"]
[1765441887316,2.8641,3187.1,3187.0,5.69975393]
[1765441887711,2.8641,3187.1,3187.0,4.35945393]
[1765441887905,2.8641,3187.1,3187.0,5.69975393]
[1765441888110,2.8641,3187.1,3187.0,2.89435]
[1765441888312,2.8641,3187.1,3187.0,1.55405]
[1765441888617,2.8641,3187.1,3187.0,2.83555]
[1765441890621,2.8641,3187.1,3187.0,1.55405]
[1765441890813,2.8641,3187.1,3187.0,2.83555]
[1765441891417,2.8641,3187.1,3187.0,0.15685]
[1765441891722,3.4039,3187.0,3186.9,2.80580282]
[1765441891931,2.6033,3186.6,3186.5,2.80716965]
[1765441892225,2.6033,3186.4,3186.3,2.72729]
[1765441892525,3.4039,3186.0,3185.9,3.92120934]
[1765441892722,2.6033,3185.9,3185.8,4.4967]
[1765441892923,2.6033,3185.9,3185.8,5.7782]
[1765441894921,2.6033,3185.9,3185.8,4.4967]
[1765441897629,2.6033,3185.9,3185.8,3.2078]
[1765441897829,2.6033,3185.9,3185.8,4.4967]
[1765441898830,0.80346442,3186.0,3185.8,4.4967]
[1765441898831,0.80346442,3186.0,3185.8,5.7782]
[1765441899028,3.179,3185.5,3185.4,3.92120934]
[1765441899232,2.6033,3184.6,3184.5,7.00620934]
[1765441899528,5.8111,3184.6,3184.5,3.0873113]
[1765441900231,5.8111,3184.6,3184.5,1.8058113]
[1765441900636,4.532,3184.6,3184.5,3.0873113]
[1765441900932,3.2078,3184.6,3184.5,3.0873113]
[1765441901135,4.532,3184.6,3184.5,3.0873113]
[1765441901336,5.8111,3184.6,3184.5,3.0873113]
[1765441902035,4.532,3184.6,3184.5,3.0873113]
[1765441902227,5.8111,3184.6,3184.5,3.4115113]
[1765441902429,4.532,3184.6,3184.5,3.4115113]
[1765441902629,3.2078,3184.6,3184.5,3.4115113]
[1765441902830,1.32890847,3184.9,3184.8,2.5704]
[1765441903029,2.60800847,3184.9,3184.8,2.5704]
[1765441903226,2.6033,3184.6,3184.5,3.4115113]
[1765441903527,1.3242,3184.6,3184.5,3.4115113]
[1765441903731,2.60800847,3184.9,3184.8,2.5704]
[1765441904136,2.60800847,3184.9,3184.8,1.2889]
[1765441904330,2.60800847,3184.9,3184.5,0.8411113]
[1765441904331,2.6033,3184.6,3184.5,3.4115113]
[1765441904531,5.8111,3184.6,3184.5,3.4115113]
[1765441904728,1.32890847,3184.9,3184.8,2.5704]
[1765441904928,0.00470847,3184.9,3184.8,2.5704]
[1765441905135,1.32890847,3184.9,3184.8,2.5704]
[1765441906332,0.00470847,3184.9,3184.8,2.5704]
[1765441907033,1.32890847,3184.9,3184.8,2.5704]
[1765441907433,2.60800847,3184.9,3184.8,2.5704]
[1765441907936,1.32890847,3184.9,3184.8,2.5704]
[1765441908935,2.6033,3184.6,3184.5,1.2912113]
[1765441909139,5.8111,3184.6,3184.5,1.2912113]
[1765441909436,5.8111,3184.6,3184.5,2.5727113]
[1765441909637,5.8111,3184.6,3184.5,3.4115113]
[1765441910228,5.8111,3184.6,3184.5,2.1300113]
[1765441910428,5.8111,3184.6,3184.5,3.4115113]
[1765441910632,3.2078,3184.6,3184.5,3.4115113]
[1765441911032,1.32890847,3184.9,3184.8,2.5704]
[1765441911237,2.60800847,3184.9,3184.8,2.5704]
[1765441914044,0.00470847,3184.9,3184.8,2.5704]
[1765441914639,1.32890847,3184.9,3184.8,2.5704]
[1765441914840,0.00470847,3184.9,3184.8,2.5704]
[1765441915845,5.33546442,3186.0,3185.9,2.5704]
[1765441916035,6.61456442,3186.0,3185.9,2.5704]
[1765441916441,6.61456442,3186.0,3185.9,1.2889]
[1765441916838,1.32706442,3186.0,3185.9,2.5704]
[1765441917040,0.00286442,3186.0,3185.9,2.5704]
[1765441917843,1.32706442,3186.0,3185.9,2.5704]
[1765441918043,2.60616442,3186.0,3185.9,2.5704]
[1765441918543,3.55956442,3186.0,3185.9,2.9259]
[1765441918947,0.00286442,3186.0,3185.9,2.9259]
[1765441920149,0.00286442,3186.0,3185.9,3.08281]
[1765441922259,0.00286442,3186.0,3185.9,3.48261]
[1765441923557,3.2078,3186.8,3186.7,3.3257]
[1765441923558,6.4239,3186.8,3186.7,3.3257]
[1765441924359,6.4239,3186.8,3186.7,1.6887]
[1765441924554,6.42767981,3186.8,3186.7,1.6887]
[1765441924756,6.42767981,3186.8,3186.7,3.3257]
[1765441925554,6.42767981,3186.8,3186.3,0.15689]
[1765441925755,3.21987981,3186.8,3186.3,0.15689]
[1765441925950,3.21987981,3186.8,3186.7,1.6887]
[1765441926152,3.2161,3186.6,3186.5,1.84558]
[1765441926357,3.2161,3186.6,3186.5,0.15688]
[1765441926755,3.2161,3186.6,3186.2,3.2078]
[1765441927063,3.2161,3186.1,3186.0,3.3257]
[1765441929060,1.5732,3186.1,3186.0,3.3257]
[1765441929262,0.9534,3186.5,3186.0,3.3257]
[1765441929460,4.1695,3186.5,3186.4,3.3257]
[1765441929763,4.1695,3186.5,3186.4,1.6887]
[1765441930064,4.1695,3186.5,3186.4,3.3257]
[1765441930466,2.5266,3186.5,3186.4,3.3257]
[1765441930762,4.1695,3186.5,3186.4,3.3257]
[1765441931355,4.1695,3186.5,3186.4,1.6887]
[1765441932757,0.9316,3185.7,3185.5,6.72445128]
[1765441932976,3.2078,3185.7,3185.0,4.0455]
[1765441933261,0.8984,3185.6,3185.5,0.9325]
[1765441933462,0.8984,3185.1,3185.0,4.0455]
[1765441933663,3.657,3185.1,3185.0,4.0455]
[1765441936165,0.00470847,3185.4,3185.0,4.0455]
[1765441936371,3.1652,3186.0,3185.9,3.113]
[1765441936666,1.5078,3186.1,3186.0,4.0455]
[1765441936865,6.373,3186.4,3186.3,3.113]
[1765441937072,3.1652,3186.4,3186.3,3.113]
[1765441937371,3.1652,3186.4,3186.3,1.5144]
[1765441938272,3.1652,3186.1,3186.0,4.0455]
[1765441938467,3.1652,3186.1,3186.0,1.5144]
[1765441938662,3.1652,3186.1,3185.6,3.2078]
[1765441938663,1.6574,3185.7,3185.6,6.3208]
[1765441939066,3.2078,3186.0,3185.9,3.113]
[1765441939469,4.8652,3186.0,3185.9,3.113]
[1765441939871,6.373,3186.0,3185.9,3.113]
[1765441940765,4.8652,3186.0,3185.9,3.113]
[1765441941376,6.373,3186.0,3185.9,3.113]
[1765441942072,4.8652,3186.0,3185.9,3.113]
[1765441942268,3.2078,3186.0,3185.9,3.113]
[1765441943470,0.00470847,3186.7,3185.9,3.113]
[1765441943471,3.21250847,3186.7,3185.9,3.113]
[1765441943775,3.21250847,3186.7,3186.0,4.1403]
[1765441945175,3.21250847,3186.7,3186.0,0.9325]
[1765441946371,3.21250847,3186.7,3186.0,4.1403]
[1765441949274,1.6574,3186.1,3186.0,7.5417]
[1765441949766,1.6574,3186.1,3186.0,11.47260834]
[1765441949969,3.6981,3186.1,3186.0,11.47260834]
[1765441950174,1.6574,3186.1,3186.0,7.5417]
[1765441950481,7.27960847,3186.7,3186.6,3.8289]
[1765441951179,7.27960847,3186.7,3186.6,1.9419]
[1765441951374,7.27960847,3186.7,3186.6,3.8289]
[1765441952779,5.23890847,3186.7,3186.6,3.8289]
[1765441952973,7.27960847,3186.7,3186.6,6.64228729]
[1765441954382,4.07180847,3186.7,3186.6,6.64228729]
[1765441955887,4.07180847,3186.7,3186.6,2.81338729]
[1765441956389,4.0671,3186.6,3186.5,2.81338729]
[1765441956786,4.0671,3186.4,3186.3,1.94660847]
[1765441957084,4.0671,3186.4,3186.3,0.00470847]
[1765441965799,4.0671,3186.4,3186.3,1.94660847]
[1765441966097,4.0671,3186.4,3186.3,0.00470847]
[1765441967401,4.0671,3186.4,3186.3,1.94660847]
[1765441967602,4.0671,3186.4,3186.3,0.00470847]
[1765441968298,4.0671,3186.4,3186.3,1.94660847]
[1765441968500,4.0671,3186.4,3186.3,0.00470847]
[1765441980815,5.22270884,3186.4,3186.3,0.00470847]
[1765441982215,5.22270884,3186.4,3186.3,1.76860847]
[1765441982715,5.22270884,3186.4,3186.3,0.00470847]
[1765441984216,5.22270884,3186.4,3186.3,3.51650847]
[1765441985318,3.21157981,3186.8,3186.3,3.51650847]
[1765441985319,3.64477981,3186.8,3186.7,1.7639]
[1765441985612,3.641,3186.4,3186.3,0.00470847]
[1765441985814,4.79660884,3186.4,3186.3,0.00470847]
[1765441987614,4.79660884,3186.4,3186.3,1.76860847]
[1765441987814,4.79660884,3186.4,3186.3,3.51650847]
[1765441988111,4.79660884,3186.4,3186.3,1.76860847]
[1765441988518,4.79660884,3186.4,3186.3,0.00470847]
[1765441990323,8.00440884,3186.4,3186.3,0.00470847]
[1765441992714,8.00440884,3186.4,3186.3,3.32340847]
[1765441992715,7.86010884,3186.4,3186.3,3.32340847]
[1765441994825,4.65230884,3186.4,3186.3,3.32340847]
[1765441996821,3.4967,3186.4,3186.3,3.32340847]
[1765441997021,1.8186,3186.4,3186.3,3.32340847]
[1765441997324,3.4967,3186.4,3186.3,3.32340847]
[1765441998128,3.4967,3186.4,3186.3,0.00470847]
[1765441998926,4.65230884,3186.4,3186.3,3.32340847]
[1765441999329,4.65230884,3186.4,3186.3,1.64960847]
[1765441999528,4.65230884,3186.4,3186.3,0.00470847]
[1765442005425,7.86010884,3186.4,3186.3,0.00470847]
[1765442007628,7.86010884,3186.4,3186.3,3.32340847]
[1765442007926,7.86010884,3186.4,3186.3,0.00470847]
[1765442015936,3.2205,3185.9,3185.8,1.6762]
[1765442016234,4.37610884,3185.9,3185.8,3.3315]
[1765442016438,4.8304,3186.4,3186.3,1.6762]
[1765442016638,7.58390884,3186.4,3186.3,1.6762]
[1765442018432,1.6226,3186.1,3186.0,4.29340847]
[1765442018739,3.2205,3186.1,3186.0,4.29340847]
[1765442019646,1.6226,3186.1,3186.0,4.29340847]
[1765442019943,4.37610884,3186.1,3186.0,4.29340847]
[1765442022046,2.77820884,3186.1,3186.0,4.29340847]
[1765442022542,4.37610884,3186.1,3186.0,4.29340847]
[1765442023846,2.77820884,3186.1,3186.0,4.29340847]
[1765442024949,1.6226,3186.1,3186.0,4.29340847]
[1765442025146,2.77820884,3186.1,3186.0,4.29340847]
[1765442026755,1.6226,3186.1,3186.0,4.29340847]
[1765442026956,6.4283,3186.4,3186.3,3.3315]
[1765442027357,6.4283,3186.4,3186.3,1.6762]
[1765442028157,7.58390884,3186.4,3186.3,1.6762]
[1765442028455,1.6226,3186.1,3186.0,4.29340847]
[1765442028755,3.2205,3186.1,3186.0,4.29340847]
[1765442029650,1.6226,3186.1,3186.0,4.29340847]
[1765442029856,1.6226,3186.1,3186.0,2.61720847]
[1765442030057,3.2205,3186.1,3186.0,4.29340847]
[1765442030259,1.6226,3186.1,3186.0,4.29340847]
[1765442030556,3.2205,3186.1,3186.0,4.29340847]
[1765442030757,1.6226,3186.1,3186.0,4.29340847]
[1765442031259,3.2205,3186.1,3186.0,4.29340847]
[1765442031556,1.6226,3186.1,3186.0,4.29340847]
[1765442031758,3.2205,3186.1,3186.0,4.29340847]
[1765442032558,1.6226,3186.1,3186.0,4.29340847]
[1765442032759,3.2205,3186.1,3186.0,4.29340847]
[1765442032958,1.6226,3186.1,3186.0,4.29340847]
[1765442033155,3.2078,3186.4,3186.3,3.3315]
[1765442033959,6.4283,3186.4,3186.3,1.6762]
[1765442034160,3.2205,3186.1,3186.0,3.93561681]
[1765442034361,4.3471246,3186.1,3186.0,1.68090847]
[1765442034552,4.3471246,3186.1,3186.0,3.33620847]
[1765442034758,3.2205,3186.1,3186.0,4.29340847]
[1765442037862,1.6226,3186.1,3186.0,4.29340847]
[1765442038064,3.2205,3186.1,3186.0,4.29340847]
[1765442038565,6.0551,3186.4,3186.3,2.8348]
[1765442038863,3.2078,3186.4,3186.3,2.8348]
[1765442039760,3.97863307,3186.7,3186.6,1.3984]
[1765442040158,1.41390847,3186.7,3186.6,2.8348]
[1765442040357,2.85200847,3186.7,3186.6,2.8348]
[1765442040564,1.41390847,3186.7,3186.6,2.8348]
[1765442040766,2.85200847,3186.7,3186.6,2.8348]
[1765442041266,2.85200847,3186.7,3186.6,2.9069]
[1765442041656,0.00470847,3186.7,3186.6,2.9069]
[1765442041863,1.41010847,3186.7,3186.6,2.9069]
[1765442042961,2.84470847,3186.7,3186.6,1.3984]
[1765442043162,2.84470847,3186.7,3186.6,2.9069]
[1765442043367,1.41010847,3186.7,3186.6,2.9069]
[1765442043567,0.00470847,3186.7,3186.6,2.9069]
[1765442049376,1.3947,3186.8,3186.7,2.8732]
[1765442049572,2.9012,3186.8,3186.5,0.901]
[1765442049880,1.1266246,3187.0,3186.5,3.7742]
[1765442049881,1.3947,3186.6,3186.5,3.7742]
[1765442050374,0.003865,3186.6,3186.5,3.7742]
[1765442053690,1.398565,3186.6,3186.5,3.7742]
[1765442054786,4.0316896,3186.6,3186.2,3.2078]
[1765442054990,2.9012,3186.1,3186.0,3.83510847]
[1765442058193,2.9012,3186.1,3186.0,0.00470847]
[1765442058695,2.9012,3186.1,3186.0,1.36890847]
[1765442058884,2.9012,3186.1,3186.0,2.79160847]
[1765442059094,2.9012,3186.1,3186.0,3.61500847]
[1765442060394,3.2078,3186.2,3186.1,2.7869]
[1765442061094,0.003865,3186.6,3186.1,2.7869]
[1765442061799,3.9851246,3186.5,3186.4,1.3642]
[1765442062692,1.4315,3186.1,3186.0,3.61500847]
[1765442063102,3.9851246,3186.5,3186.4,1.3642]
[1765442063601,3.9851246,3186.5,3186.4,2.7869]
[1765442064002,2.8585,3185.6,3185.5,5.29402511]
[1765442064197,7.1929246,3185.6,3185.5,7.54012511]
[1765442064398,5.7659246,3185.6,3185.5,3.6103]
[1765442064593,4.6393,3185.6,3185.5,3.6103]
[1765442065600,2.8585,3185.3,3185.2,0.00470847]
[1765442065894,2.8585,3184.6,3184.5,1.3665113]
[1765442066699,2.8585,3184.6,3184.5,0.0023113]
[1765442067103,2.8585,3184.6,3184.5,2.7892113]
[1765442067397,1.4315,3184.6,3184.5,3.6126113]
[1765442067605,4.6393,3184.7,3184.6,2.7869]
[1765442067802,3.2078,3184.7,3184.6,2.7869]
[1765442068599,0.00470847,3184.9,3184.8,2.8194]
[1765442069101,4.15523307,3184.9,3184.5,0.8257113]
[1765442069398,6.2317,3184.6,3184.5,3.7907113]
[1765442069791,7.3583246,3184.6,3184.5,2.3355113]
[1765442069993,7.3583246,3184.6,3184.5,0.0023113]
[1765442070705,6.2317,3184.6,3184.5,0.0023113]
[1765442070896,7.3583246,3184.6,3184.5,0.0023113]
[1765442074003,7.3583246,3184.6,3184.5,1.5121113]
[1765442074205,3.2078,3184.6,3184.5,3.8538113]
[1765442074405,4.7283,3184.6,3184.5,3.8538113]
[1765442074606,7.3583246,3184.6,3184.5,3.8538113]
[1765442074802,7.3583246,3184.6,3184.5,0.0023113]
[1765442075000,0.9358,3184.5,3182.5,0.8865]
[1765442075200,4.1505246,3184.2,3184.1,2.965]
[1765442075397,7.3583246,3184.2,3184.1,2.965]
[1765442075601,3.2078,3184.2,3184.1,2.965]
[1765442076006,3.21130637,3184.2,3184.1,2.96772315]
[1765442078207,4.73180637,3184.2,3184.1,2.96772315]
[1765442078399,6.23520637,3184.2,3184.1,2.96772315]
[1765442078803,6.23520637,3184.2,3184.1,1.51252315]
[1765442079003,6.23520637,3184.2,3184.1,0.00272315]
[1765442079298,6.23520637,3184.2,3184.1,1.51252315]
[1765442079504,7.36183097,3184.2,3184.1,0.00272315]
[1765442080909,6.23520637,3184.2,3184.1,2.96772315]
[1765442081107,6.23520637,3184.2,3184.1,1.51252315]
[1765442081410,6.23520637,3184.2,3184.1,0.00272315]
[1765442082605,3.0239,3183.6,3183.5,0.15703]
[1765442082802,7.3583246,3183.6,3183.5,3.12203]
[1765442083220,7.3583246,3183.6,3183.5,0.15703]
[1765442083621,7.3583246,3183.6,3183.5,0.16048369]
[1765442083826,7.3583246,3183.6,3183.5,4.01198369]
[1765442084126,3.2078,3183.6,3183.5,4.01198369]
[1765442084521,3.0239,3182.6,3182.5,3.91999619]
[1765442084717,1.5205,3182.2,3182.1,0.15709]
[1765442085015,1.5205,3182.2,3182.1,3.12209]
[1765442085016,4.7283,3182.2,3182.1,3.12209]
[1765442085216,3.2078,3182.6,3182.5,3.8515]
[1765442085616,4.7283,3182.6,3182.5,3.8515]
[1765442085821,6.2317,3182.6,3182.5,1.5098]
[1765442086022,4.7283,3182.6,3182.5,3.8515]
[1765442086621,6.2317,3182.6,3182.5,3.8515]
[1765442087925,4.7283,3182.6,3182.5,3.8515]
[1765442088124,6.2317,3182.6,3182.0,1.0436]
[1765442088425,6.2317,3182.6,3182.5,3.8515]
[1765442089019,6.2317,3182.6,3182.5,1.5098]
[1765442089523,1.5205,3182.1,3182.0,4.0086]
[1765442089723,3.2078,3182.6,3182.0,4.0086]
[1765442089923,1.5205,3182.1,3182.0,4.0086]
[1765442090316,1.5205,3182.1,3182.0,1.6669]
[1765442090317,6.2317,3182.1,3182.0,1.6669]
[1765442090516,6.2317,3182.1,3182.0,0.1571]
[1765442090717,6.2317,3182.1,3182.0,3.1221]
[1765442090918,6.2317,3182.1,3182.0,4.0086]
[1765442091118,6.2317,3182.1,3182.0,0.1571]
[1765442091320,6.2317,3182.1,3182.0,1.6669]
[1765442091626,3.2078,3182.1,3182.0,4.0086]
[1765442093526,3.2078,3182.7,3182.6,1.4552]
[1765442093730,3.2078,3182.7,3182.6,2.965]
[1765442093920,3.2078,3182.7,3182.6,3.12207]
[1765442094124,0.8365,3184.0,3183.1,3.12205]
[1765442094125,3.2078,3183.2,3183.1,3.12205]
[1765442095219,3.2078,3183.6,3183.5,3.8515]
[1765442095429,0.00470847,3183.9,3183.5,4.00853]
[1765442095618,4.7283,3183.6,3183.5,4.00853]
[1765442095821,6.2317,3183.6,3183.5,4.00853]
[1765442096018,4.69215351,3183.6,3183.5,0.15703]
[1765442096534,3.0239,3183.6,3183.5,0.15703]
[1765442098732,3.0239,3183.6,3183.5,4.01063]
[1765442099233,1.5205,3183.6,3183.5,4.01063]
[1765442099532,3.0298,3183.6,3183.5,1.66683]
[1765442099924,3.0298,3183.6,3183.5,0.15703]
[1765442103842,3.0917,3182.9,3182.8,0.00470847]
[1765442104137,3.2078,3182.9,3182.8,3.16546847]
[1765442104325,0.00470847,3183.9,3183.8,3.0037]
[1765442104936,3.09640847,3183.9,3183.8,1.5587]
[1765442105133,1.5824,3183.0,3182.9,3.16076]
[1765442105334,2.4929,3183.5,3183.4,3.0037]
[1765442105926,2.4929,3183.5,3182.8,0.00470847]
[1765442105927,3.09640847,3183.9,3183.8,1.5587]
[1765442106235,0.00470847,3183.9,3183.8,3.0037]
[1765442106439,3.09640847,3183.9,3183.8,1.5587]
[1765442109642,3.09640847,3183.9,3183.3,0.15703]
[1765442109843,3.09640847,3183.9,3183.8,1.5587]
[1765442110140,3.09640847,3183.9,3183.3,0.15703]
[1765442110644,3.09640847,3183.9,3183.8,1.5587]
[1765442110844,3.09640847,3183.9,3183.8,3.0037]
[1765442111038,3.09640847,3183.9,3183.8,1.5587]
[1765442111244,3.09640847,3183.9,3183.8,3.0037]
[1765442111437,3.09640847,3183.9,3183.8,1.5587]
[1765442112438,1.5678,3183.4,3183.3,1.72193]
[1765442112639,3.2067,3183.4,3183.3,3.28073]
[1765442113138,3.2067,3183.4,3183.3,0.15703]
[1765442113538,3.21250847,3183.9,3183.4,3.1237]
[1765442113738,6.41920847,3183.9,3183.8,1.5649]
[1765442113940,6.41920847,3183.9,3183.3,0.15703]
[1765442113941,1.5678,3183.4,3183.3,3.28073]
[1765442114140,3.2067,3183.4,3183.3,1.72193]
[1765442115147,1.5678,3183.4,3183.3,3.28073]
[1765442115345,2.5597,3183.5,3183.4,3.28073]
[1765442115546,4.7756,3183.6,3183.5,3.1237]
[1765442115845,3.2078,3183.6,3183.5,3.28073]
[1765442116042,4.1986,3183.0,3182.9,4.08936552]
[1765442116242,7.4064,3183.0,3182.9,1.72195]
[1765442116442,7.4064,3183.0,3182.9,0.15705]
[1765442117249,4.1986,3183.0,3182.9,0.15705]
[1765442117543,6.4145,3183.2,3183.1,1.5649]
[1765442117949,2.5597,3183.0,3182.9,1.72195]
[1765442118243,4.1986,3183.0,3182.9,1.72195]
[1765442119350,4.1986,3183.0,3182.9,0.15705]
[1765442120541,4.1986,3183.0,3182.9,1.72195]
[1765442121544,4.1986,3183.0,3182.9,3.28075]
[1765442121954,4.1986,3183.0,3182.9,1.72195]
[1765442122548,4.1986,3183.0,3182.9,0.15705]
[1765442123253,4.1986,3183.0,3182.9,1.72195]
[1765442123451,4.1986,3183.0,3182.9,0.15705]
[1765442124142,4.1986,3183.0,3182.9,3.28075]
[1765442124849,4.1986,3183.0,3182.9,1.72195]
[1765442125148,4.1986,3183.0,3182.9,0.15705]
[1765442126452,4.1986,3183.0,3182.9,3.28075]
[1765442127249,4.1986,3183.0,3182.9,0.15705]
[1765442129853,3.0153,3182.9,3182.8,8.47e-06]
[1765442133457,3.0153,3182.9,3182.8,1.57320847]
[1765442133661,0.9919,3183.0,3182.8,1.57320847]
[1765442133662,0.9919,3183.0,3182.8,8.47e-06]
[1765442139866,0.9368,3182.0,3181.1,3.2078]
[1765442140060,3.9521,3181.5,3181.4,1.5732]
[1765442140261,1.48869338,3181.5,3181.4,3.23593]
[1765442140462,3.95489338,3181.5,3181.4,3.23593]
[1765442140770,0.00279338,3181.5,3181.4,3.23593]
[1765442141065,0.00279338,3181.5,3180.5,0.7615]
[1765442141066,0.15716,3180.8,3178.1,13.48475749]
[1765442141266,1.66825351,3178.2,3178.0,0.8906]
[1765442141466,1.66825351,3179.2,3178.0,0.8906]
[1765442141467,1.048,3179.2,3178.0,0.8906]
[1765442141763,3.2078,3179.3,3178.0,0.8906]
[1765442141967,3.2078,3179.3,3179.0,0.8906]
[1765442142366,0.00471601,3179.8,3179.4,0.8906]
[1765442142562,1.67296952,3179.8,3179.4,0.8906]
[1765442143171,1.67296952,3179.8,3179.0,0.89322879]
[1765442143172,0.65,3179.7,3177.5,0.23394891]
[1765442143470,2.31825351,3179.7,3179.4,0.8906]
[1765442143770,1.66825351,3179.7,3179.4,0.8906]
[1765442143969,1.66825351,3179.7,3178.8,0.8906]
[1765442144173,1.66825351,3178.9,3178.8,0.8906]
[1765442145370,1.66825351,3179.5,3178.8,0.8906]
[1765442145570,0.00311968,3179.7,3179.4,0.8906]
[1765442146068,3.2078,3180.4,3180.0,0.8906]
[1765442146263,3.2078,3180.4,3180.3,3.0788]
[1765442146470,3.2078,3180.8,3180.6,0.8906]
[1765442147066,3.21008785,3180.8,3180.6,0.8937024]
[1765442147371,0.00228785,3180.8,3180.0,0.8906]
[1765442147571,1.66825351,3180.3,3180.0,0.8906]
[1765442147772,1.66825351,3180.7,3180.6,0.8906]
[1765442148574,0.00228785,3180.8,3180.7,1.5732]
[1765442148774,0.00228785,3180.8,3180.6,0.8906]
[1765442149673,0.00228785,3180.8,3180.7,3.0788]
[1765442150974,0.00228785,3180.8,3180.6,0.8906]
[1765442151785,0.00228785,3180.8,3180.7,1.5732]
[1765442152384,0.00228785,3180.8,3180.7,3.0788]
[1765442158092,1.13377731,3180.8,3180.7,3.0788]
[1765442159591,0.00228785,3180.8,3180.7,3.0788]
[1765442159785,1.13173419,3180.8,3180.7,3.0788]
[1765442160286,1.13173419,3180.8,3180.6,4.4289]
[1765442160495,1.12944634,3180.7,3180.6,8.0098]
[1765442160991,0.00228785,3180.8,3180.7,7.1192]
[1765442161294,1.13248618,3180.8,3180.7,7.1192]
[1765442162494,0.00228785,3180.8,3180.7,7.1192]
[1765442162689,1.10461172,3180.8,3180.7,3.5383]
[1765442162889,1.10461172,3180.8,3180.6,0.8906]
[1765442163083,0.00228785,3180.8,3180.6,0.8906]
[1765442163287,0.00228785,3180.8,3180.6,4.4289]
[1765442163489,0.00228785,3180.8,3180.7,7.1192]
[1765442163794,1.10507418,3180.8,3180.7,7.1192]
[1765442164991,1.68349837,3181.5,3181.4,7.1192]
[1765442165185,1.68349837,3181.9,3181.8,7.1192]
[1765442165490,5.21449837,3182.1,3182.0,1.971]
[1765442165696,3.531,3182.1,3182.0,1.971]
[1765442166097,5.19195673,3182.1,3182.0,1.971]
[1765442166897,11.19195673,3182.1,3182.0,1.971]
[1765442167390,5.19195673,3182.1,3182.0,1.971]
[1765442167595,3.53320521,3182.1,3182.0,1.971]
[1765442170793,3.53320521,3182.1,3182.0,8.7921]
[1765442170994,0.00471601,3182.4,3182.3,6.5657]
[1765442171502,0.00471601,3182.4,3182.0,1.971]
[1765442171796,0.00471601,3182.4,3182.3,3.2829]
[1765442172099,0.00777429,3182.4,3182.0,1.971]
[1765442174899,1.65875152,3182.3,3182.0,1.971]
[1765442175401,0.00777429,3182.4,3182.0,1.971]
[1765442175402,1.65875152,3182.2,3182.0,1.971]
[1765442177100,1.07606761,3182.1,3182.0,1.971]
[1765442179407,1.07606761,3182.1,3182.0,8.5367]
[1765442184814,0.00777429,3182.4,3182.3,6.5657]
[1765442185108,1.05074134,3182.4,3182.3,6.5657]
[1765442186706,0.00777429,3182.4,3182.3,6.5657]
[1765442186913,1.05074134,3182.4,3182.0,1.84250426]
[1765442187124,1.85848711,3182.1,3182.0,2.0778]
[1765442187611,2.90145416,3182.1,3182.0,2.0778]
[1765442188410,2.90145416,3182.1,3181.7,0.00471601]
[1765442188611,1.00766402,3182.0,3181.7,0.00471601]
[1765442190707,1.00766402,3182.0,3181.7,3.39881601]
[1765442191314,1.85848711,3182.1,3181.9,6.9118]
[1765442191615,0.15709,3182.2,3182.1,3.3941]
[1765442191820,0.00777429,3182.4,3182.3,6.9118]
[1765442192422,0.00777429,3182.4,3182.3,3.3941]
[1765442192823,0.00777429,3182.4,3182.3,6.9118]
[1765442193814,0.00777429,3182.4,3182.0,5.4594]
[1765442194122,1.85848711,3182.3,3182.0,5.4594]
[1765442195117,1.85848711,3182.3,3182.0,2.0653]
[1765442195626,0.99306314,3182.2,3182.0,2.0653]
[1765442196327,6.99306314,3182.2,3181.7,0.00471601]
[1765442196518,0.99306314,3182.1,3181.7,0.00471601]
[1765442196819,0.99306314,3182.2,3181.7,3.39881601]
[1765442197125,0.99306314,3182.2,3182.0,2.0653]
[1765442197915,0.99306314,3182.2,3182.0,5.4594]
[1765442199226,0.99306314,3182.2,3182.1,6.9118]
[1765442199518,1.85848711,3182.3,3182.2,6.9118]
[1765442201725,1.85848711,3182.3,3182.0,5.4594]
[1765442202726,1.85848711,3182.3,3182.2,3.3941]
[1765442202923,1.85848711,3182.3,3182.2,6.9118]
[1765442205728,1.85848711,3182.3,3182.0,2.0653]
[1765442205729,1.85848711,3182.3,3182.0,5.4594]
[1765442206818,1.85848711,3182.3,3182.2,6.9118]
[1765442209326,0.00777429,3182.4,3182.3,6.9118]
[1765442216426,0.00305828,3182.4,3182.3,6.9118]
[1765442216628,0.15706,3182.8,3182.7,6.9118]
[1765442217532,0.1604132,3182.8,3182.7,6.9118]
[1765442218230,0.0033532,3182.8,3182.7,6.9118]
[1765442218836,12.651,3183.0,3182.9,6.6289]
[1765442219634,0.00471601,3183.1,3182.5,2.0653]
[1765442219635,0.00471601,3183.1,3183.0,8.1099]
[1765442219833,0.00815461,3183.1,3183.0,8.11362878]
[1765442220431,1.6684523,3183.7,3183.6,6.305]
[1765442220733,8.3140523,3184.1,3183.5,1.8049]
[1765442220931,8.3140523,3184.1,3184.0,8.1099]
[1765442221532,1.82862759,3184.1,3184.0,8.1099]
[1765442221736,5.03072759,3184.1,3184.0,8.1099]
[1765442221932,6.4886,3183.8,3183.7,6.30971601]
[1765442222436,6.4886,3183.8,3183.0,1.80862878]
[1765442222437,6.4886,3183.1,3183.0,8.11362878]
[1765442222631,1.6684523,3183.1,3183.0,8.11362878]
[1765442223237,4.8705523,3183.1,3183.0,8.11362878]
[1765442224838,0.15701,3183.9,3183.4,6.305]
[1765442224839,1.6684523,3183.5,3183.4,6.305]
[1765442225231,5.0275623,3183.9,3183.8,6.305]
[1765442225438,1.6684523,3183.9,3183.8,6.305]
[1765442225639,8.1570523,3183.9,3183.5,1.8049]
[1765442225839,3.2021,3183.6,3183.5,8.1099]
[1765442226336,6.4886,3183.6,3183.0,1.80862878]
[1765442226641,4.8705523,3183.3,3183.2,6.305]
[1765442227139,8.1570523,3183.5,3183.4,6.305]
[1765442227340,1.6684523,3183.5,3183.4,6.305]
[1765442227739,4.8705523,3183.9,3183.8,3.2348]
[1765442227940,4.8705523,3183.9,3183.8,6.305]
[1765442228439,8.1570523,3183.9,3183.8,6.305]